{"text_format":"3","workbook":"xlsx","n_sheets":2,"sheets":["Inicio","Presupuesto mensual personal"],"not_rendered":{"images":1},"read":"whole","date_system":"1900"}

{"sheet":"Inicio","index":0,"n_rows":7,"n_cols":2,"rows_kept":7}
[null,"Información sobre esta plantilla"]
[null,"Use esta hoja de cálculo de presupuesto mensual personal para realizar un seguimiento de sus ingresos mensuales previstos y reales, así como de sus gastos mensuales previstos y reales."]
[null,"Escriba los gastos realizados divididos en diferentes categorías en las tablas correspondientes."]
[null,"El saldo previsto, el saldo real y la diferencia se calculan automáticamente."]
[null,"Nota: "]
[null,"Se facilitan instrucciones adicionales en la columna A de la hoja de cálculo PRESUPUESTO MENSUAL PERSONAL. Este texto se ha ocultado a propósito. Para eliminar el texto, seleccione la columna A y, a continuación, ELIMINAR. Para mostrar el texto, seleccione la columna A y, a continuación, cambie el color de fuente."]
[null,"Para obtener más información sobre las tablas de la hoja de cálculo, presione las teclas MAYÚS y F10 dentro de una tabla, seleccione la opción TABLA y, a continuación, TEXTO ALTERNATIVO."]

{"sheet":"Presupuesto mensual personal","index":1,"n_rows":66,"n_cols":10,"rows_kept":66,"merged":[[3,1,3,2],[3,4,4,6],[3,7,4,7],[5,4,6,6],[5,7,6,7],[7,4,8,6],[7,7,8,7],[8,1,8,2],[24,6,24,9],[25,1,25,4],[33,6,33,9],[35,1,35,4],[40,6,40,9],[42,1,42,4],[46,6,46,9],[48,1,48,4],[52,6,52,9],[56,1,56,4],[59,6,59,9],[60,6,61,8],[60,9,61,9],[62,6,63,8],[62,9,63,9],[64,6,65,8],[64,9,65,9],[66,1,66,4]]}
["Cree un presupuesto mensual personal en esta hoja de cálculo. Encontrará instrucciones útiles sobre cómo usar esta hoja de cálculo en las celdas de esta columna. Presione la flecha abajo para empezar."]
["El título de esta hoja de cálculo se encuentra en la celda de la derecha. La instrucción siguiente se encuentra en la celda A5.",null,"Presupuesto mensual personal"]
[]
["La etiqueta Ingresos mensuales previstos se encuentra en la celda de la derecha. Escriba el Ingreso 1 en la celda C5 y el Ingreso adicional en la C6 para calcular el total de ingresos mensuales en la celda C7. La instrucción siguiente se encuentra en la celda A7.","Ingresos mensuales previstos",null,null,"Saldo previsto\n(Ingresos previstos menos gastos)",null,null,{"$f":"C7-J61","v":{"v":3405,"d":"3,405.00 €"}}]
[null,"Ingreso 1",{"v":4300,"d":"4,300.00 €"}]
[null,"Ingresos adicionales",{"v":300,"d":"300.00 €"},null,"Saldo real\n(Ingresos reales menos gastos)",null,null,{"$f":"C12-J63","v":{"v":3064,"d":"3,064.00 €"}}]
["El saldo previsto se calcula automáticamente en la celda H4; el saldo real, en la H6; y la diferencia, en la celda H8. La instrucción siguiente se encuentra en la celda A9.","Total de ingresos mensuales",{"$f":"SUM(C5:C6)","v":{"v":4600,"d":"4,600.00 €"}}]
[{"$nulls":4},"Diferencia\n(Real menos previsto)",null,null,{"$f":"H6-H4","v":{"v":-341,"d":"-341.00 €"}}]
["La etiqueta Ingresos mensuales reales se encuentra en la celda de la derecha. Escriba el Ingreso 1 en la celda C10 y el Ingreso adicional en la C11 para calcular el total de ingresos mensuales en la celda C12. La instrucción siguiente se encuentra en la celda A14.","Ingresos mensuales reales"]
[null,"Ingreso 1",{"v":4000,"d":"4,000.00 €"}]
[null,"Ingresos adicionales",{"v":300,"d":"300.00 €"}]
[null,"Total de ingresos mensuales",{"$f":"SUM(C10:C11)","v":{"v":4300,"d":"4,300.00 €"}}]
[]
["Escriba la información en la tabla Alojamiento, empezando por la celda de la derecha y en la tabla Entretenimiento, empezando por la celda G14. La instrucción siguiente se encuentra en la celda A27.","ALOJAMIENTO","Coste previsto","Costo real","Diferencia",null,"ENTRETENIMIENTO","Coste previsto","Costo real","Diferencia"]
[null,"Hipoteca o alquiler",{"v":1000,"d":"1,000.00 €"},{"v":1000,"d":"1,000.00 €"},{"$f":"Alojamiento[[#This Row],[Coste previsto]]-Alojamiento[[#This Row],[Costo real]]","v":{"v":0,"d":"0.00 €"}},null,"Vídeo y DVD",null,null,{"$f":"Entretenimiento[[#This Row],[Coste previsto]]-Entretenimiento[[#This Row],[Costo real]]","v":{"v":0,"d":"0.00 €"}}]
[null,"Teléfono",{"v":54,"d":"54.00 €"},{"v":100,"d":"100.00 €"},{"$f":"Alojamiento[[#This Row],[Coste previsto]]-Alojamiento[[#This Row],[Costo real]]","v":{"v":-46,"d":"-46.00 €"}},null,"CD",null,null,{"$f":"Entretenimiento[[#This Row],[Coste previsto]]-Entretenimiento[[#This Row],[Costo real]]","v":{"v":0,"d":"0.00 €"}}]
[null,"Electricidad",{"v":44,"d":"44.00 €"},{"v":56,"d":"56.00 €"},{"$f":"Alojamiento[[#This Row],[Coste previsto]]-Alojamiento[[#This Row],[Costo real]]","v":{"v":-12,"d":"-12.00 €"}},null,"Películas",null,null,{"$f":"Entretenimiento[[#This Row],[Coste previsto]]-Entretenimiento[[#This Row],[Costo real]]","v":{"v":0,"d":"0.00 €"}}]
[null,"Gas",{"v":22,"d":"22.00 €"},{"v":28,"d":"28.00 €"},{"$f":"Alojamiento[[#This Row],[Coste previsto]]-Alojamiento[[#This Row],[Costo real]]","v":{"v":-6,"d":"-6.00 €"}},null,"Conciertos",null,null,{"$f":"Entretenimiento[[#This Row],[Coste previsto]]-Entretenimiento[[#This Row],[Costo real]]","v":{"v":0,"d":"0.00 €"}}]
[null,"Agua y alcantarillado",{"v":8,"d":"8.00 €"},{"v":8,"d":"8.00 €"},{"$f":"Alojamiento[[#This Row],[Coste previsto]]-Alojamiento[[#This Row],[Costo real]]","v":{"v":0,"d":"0.00 €"}},null,"Eventos deportivos",null,null,{"$f":"Entretenimiento[[#This Row],[Coste previsto]]-Entretenimiento[[#This Row],[Costo real]]","v":{"v":0,"d":"0.00 €"}}]
[null,"Televisión por cable",{"v":34,"d":"34.00 €"},{"v":34,"d":"34.00 €"},{"$f":"Alojamiento[[#This Row],[Coste previsto]]-Alojamiento[[#This Row],[Costo real]]","v":{"v":0,"d":"0.00 €"}},null,"Teatro",null,null,{"$f":"Entretenimiento[[#This Row],[Coste previsto]]-Entretenimiento[[#This Row],[Costo real]]","v":{"v":0,"d":"0.00 €"}}]
[null,"Recogida de residuos",{"v":10,"d":"10.00 €"},{"v":10,"d":"10.00 €"},{"$f":"Alojamiento[[#This Row],[Coste previsto]]-Alojamiento[[#This Row],[Costo real]]","v":{"v":0,"d":"0.00 €"}},null,"Otros",null,null,{"$f":"Entretenimiento[[#This Row],[Coste previsto]]-Entretenimiento[[#This Row],[Costo real]]","v":{"v":0,"d":"0.00 €"}}]
[null,"Mantenimiento o reparaciones",{"v":23,"d":"23.00 €"},{"v":0,"d":"0.00 €"},{"$f":"Alojamiento[[#This Row],[Coste previsto]]-Alojamiento[[#This Row],[Costo real]]","v":{"v":23,"d":"23.00 €"}},null,"Otros",null,null,{"$f":"Entretenimiento[[#This Row],[Coste previsto]]-Entretenimiento[[#This Row],[Costo real]]","v":{"v":0,"d":"0.00 €"}}]
[null,"Suministros",{"v":0,"d":"0.00 €"},{"v":0,"d":"0.00 €"},{"$f":"Alojamiento[[#This Row],[Coste previsto]]-Alojamiento[[#This Row],[Costo real]]","v":{"v":0,"d":"0.00 €"}},null,"Otros",null,null,{"$f":"Entretenimiento[[#This Row],[Coste previsto]]-Entretenimiento[[#This Row],[Costo real]]","v":{"v":0,"d":"0.00 €"}}]
[null,"Otros",{"v":0,"d":"0.00 €"},{"v":0,"d":"0.00 €"},{"$f":"Alojamiento[[#This Row],[Coste previsto]]-Alojamiento[[#This Row],[Costo real]]","v":{"v":0,"d":"0.00 €"}},null,"Subtotal",null,null,{"$f":"SUBTOTAL(109,Entretenimiento[Diferencia])","v":{"v":0,"d":"0.00 €"}}]
[null,"Subtotal",null,null,{"$f":"SUBTOTAL(109,Alojamiento[Diferencia])","v":{"v":-41,"d":"-41.00 €"}}]
[{"$nulls":6},"PRÉSTAMOS","Coste previsto","Costo real","Diferencia"]
["Escriba la información en la tabla Transporte, empezando por la celda de la derecha y en la tabla Préstamos, empezando por la celda G26. La instrucción siguiente se encuentra en la celda A37.","TRANSPORTE","Coste previsto","Costo real","Diferencia",null,"Personal",null,null,{"$f":"Prestamos[[#This Row],[Coste previsto]]-Prestamos[[#This Row],[Costo real]]","v":{"v":0,"d":"0.00 €"}}]
[null,"Pago del vehículo",null,null,{"$f":"Transporte[[#This Row],[Coste previsto]]-Transporte[[#This Row],[Costo real]]","v":{"v":0,"d":"0.00 €"}},null,"Estudiante",null,null,{"$f":"Prestamos[[#This Row],[Coste previsto]]-Prestamos[[#This Row],[Costo real]]","v":{"v":0,"d":"0.00 €"}}]
[null,"Gastos de taxi o bus",null,null,{"$f":"Transporte[[#This Row],[Coste previsto]]-Transporte[[#This Row],[Costo real]]","v":{"v":0,"d":"0.00 €"}},null,"Tarjeta de crédito",null,null,{"$f":"Prestamos[[#This Row],[Coste previsto]]-Prestamos[[#This Row],[Costo real]]","v":{"v":0,"d":"0.00 €"}}]
[null,"Seguro",null,null,{"$f":"Transporte[[#This Row],[Coste previsto]]-Transporte[[#This Row],[Costo real]]","v":{"v":0,"d":"0.00 €"}},null,"Tarjeta de crédito",null,null,{"$f":"Prestamos[[#This Row],[Coste previsto]]-Prestamos[[#This Row],[Costo real]]","v":{"v":0,"d":"0.00 €"}}]
[null,"Licencias",null,null,{"$f":"Transporte[[#This Row],[Coste previsto]]-Transporte[[#This Row],[Costo real]]","v":{"v":0,"d":"0.00 €"}},null,"Tarjeta de crédito",null,null,{"$f":"Prestamos[[#This Row],[Coste previsto]]-Prestamos[[#This Row],[Costo real]]","v":{"v":0,"d":"0.00 €"}}]
[null,"Combustible",null,null,{"$f":"Transporte[[#This Row],[Coste previsto]]-Transporte[[#This Row],[Costo real]]","v":{"v":0,"d":"0.00 €"}},null,"Otros",null,null,{"$f":"Prestamos[[#This Row],[Coste previsto]]-Prestamos[[#This Row],[Costo real]]","v":{"v":0,"d":"0.00 €"}}]
[null,"Mantenimiento",null,null,{"$f":"Transporte[[#This Row],[Coste previsto]]-Transporte[[#This Row],[Costo real]]","v":{"v":0,"d":"0.00 €"}},null,"Subtotal",null,null,{"$f":"SUBTOTAL(109,Prestamos[Diferencia])","v":{"v":0,"d":"0.00 €"}}]
[null,"Otros",null,null,{"$f":"Transporte[[#This Row],[Coste previsto]]-Transporte[[#This Row],[Costo real]]","v":{"v":0,"d":"0.00 €"}}]
[null,"Subtotal",null,null,{"$f":"SUBTOTAL(109,Transporte[Diferencia])","v":{"v":0,"d":"0.00 €"}},null,"IMPUESTOS","Coste previsto","Costo real","Diferencia"]
[{"$nulls":6},"Federales",null,null,{"$f":"Impuestos[[#This Row],[Coste previsto]]-Impuestos[[#This Row],[Costo real]]","v":{"v":0,"d":"0.00 €"}}]
["Escriba la información en la tabla Seguro, empezando por la celda de la derecha y en la tabla Impuestos, empezando por la celda G35. La instrucción siguiente se encuentra en la celda A44.","SEGURO","Coste previsto","Costo real","Diferencia",null,"Estatales",null,null,{"$f":"Impuestos[[#This Row],[Coste previsto]]-Impuestos[[#This Row],[Costo real]]","v":{"v":0,"d":"0.00 €"}}]
[null,"Hogar",null,null,{"$f":"Seguro[[#This Row],[Coste previsto]]-Seguro[[#This Row],[Costo real]]","v":{"v":0,"d":"0.00 €"}},null,"Locales",null,null,{"$f":"Impuestos[[#This Row],[Coste previsto]]-Impuestos[[#This Row],[Costo real]]","v":{"v":0,"d":"0.00 €"}}]
[null,"Salud",null,null,{"$f":"Seguro[[#This Row],[Coste previsto]]-Seguro[[#This Row],[Costo real]]","v":{"v":0,"d":"0.00 €"}},null,"Otros",null,null,{"$f":"Impuestos[[#This Row],[Coste previsto]]-Impuestos[[#This Row],[Costo real]]","v":{"v":0,"d":"0.00 €"}}]
[null,"Vida",null,null,{"$f":"Seguro[[#This Row],[Coste previsto]]-Seguro[[#This Row],[Costo real]]","v":{"v":0,"d":"0.00 €"}},null,"Subtotal",null,null,{"$f":"SUBTOTAL(109,Impuestos[Diferencia])","v":{"v":0,"d":"0.00 €"}}]
[null,"Otros",null,null,{"$f":"Seguro[[#This Row],[Coste previsto]]-Seguro[[#This Row],[Costo real]]","v":{"v":0,"d":"0.00 €"}}]
[null,"Subtotal",null,null,{"$f":"SUBTOTAL(109,Seguro[Diferencia])","v":{"v":0,"d":"0.00 €"}},null,"AHORROS O INVERSIONES","Coste previsto","Costo real","Diferencia"]
[{"$nulls":6},"Cuenta de jubilación",null,null,{"$f":"Ahorros[[#This Row],[Coste previsto]]-Ahorros[[#This Row],[Costo real]]","v":{"v":0,"d":"0.00 €"}}]
["Escriba la información en la tabla Comida, empezando por la celda de la derecha y en la tabla Ahorros, empezando por la celda G42. La instrucción siguiente se encuentra en la celda A50.","COMIDA","Coste previsto","Costo real","Diferencia",null,"Cuenta de inversión",null,null,{"$f":"Ahorros[[#This Row],[Coste previsto]]-Ahorros[[#This Row],[Costo real]]","v":{"v":0,"d":"0.00 €"}}]
[null,"Alimentos",null,null,{"$f":"Comida[[#This Row],[Coste previsto]]-Comida[[#This Row],[Costo real]]","v":{"v":0,"d":"0.00 €"}},null,"Otros",null,null,{"$f":"Ahorros[[#This Row],[Coste previsto]]-Ahorros[[#This Row],[Costo real]]","v":{"v":0,"d":"0.00 €"}}]
[null,"Restaurantes",null,null,{"$f":"Comida[[#This Row],[Coste previsto]]-Comida[[#This Row],[Costo real]]","v":{"v":0,"d":"0.00 €"}},null,"Subtotal",null,null,{"$f":"SUBTOTAL(109,Ahorros[Diferencia])","v":{"v":0,"d":"0.00 €"}}]
[null,"Otros",null,null,{"$f":"Comida[[#This Row],[Coste previsto]]-Comida[[#This Row],[Costo real]]","v":{"v":0,"d":"0.00 €"}}]
[null,"Subtotal",null,null,{"$f":"SUBTOTAL(109,Comida[Diferencia])","v":{"v":0,"d":"0.00 €"}},null,"REGALOS Y DONACIONES","Coste previsto","Costo real","Diferencia"]
[{"$nulls":6},"Organización benéfica 1",null,null,{"$f":"Regalos[[#This Row],[Coste previsto]]-Regalos[[#This Row],[Costo real]]","v":{"v":0,"d":"0.00 €"}}]
["Escriba la información en la tabla Mascotas, empezando por la celda de la derecha y en la tabla Regalos, empezando por la celda G48. La instrucción siguiente se encuentra en la celda A58.","MASCOTAS","Coste previsto","Costo real","Diferencia",null,"Organización benéfica 2",null,null,{"$f":"Regalos[[#This Row],[Coste previsto]]-Regalos[[#This Row],[Costo real]]","v":{"v":0,"d":"0.00 €"}}]
[null,"Comida",null,null,{"$f":"Mascotas[[#This Row],[Coste previsto]]-Mascotas[[#This Row],[Costo real]]","v":{"v":0,"d":"0.00 €"}},null,"Organización benéfica 3",null,null,{"$f":"Regalos[[#This Row],[Coste previsto]]-Regalos[[#This Row],[Costo real]]","v":{"v":0,"d":"0.00 €"}}]
[null,"Médicos",null,null,{"$f":"Mascotas[[#This Row],[Coste previsto]]-Mascotas[[#This Row],[Costo real]]","v":{"v":0,"d":"0.00 €"}},null,"Subtotal",null,null,{"$f":"SUBTOTAL(109,Regalos[Diferencia])","v":{"v":0,"d":"0.00 €"}}]
[null,"Limpieza",null,null,{"$f":"Mascotas[[#This Row],[Coste previsto]]-Mascotas[[#This Row],[Costo real]]","v":{"v":0,"d":"0.00 €"}}]
[null,"Juguetes",null,null,{"$f":"Mascotas[[#This Row],[Coste previsto]]-Mascotas[[#This Row],[Costo real]]","v":{"v":0,"d":"0.00 €"}},null,"LEGAL","Coste previsto","Costo real","Diferencia"]
[null,"Otros",null,null,{"$f":"Mascotas[[#This Row],[Coste previsto]]-Mascotas[[#This Row],[Costo real]]","v":{"v":0,"d":"0.00 €"}},null,"Abogados",null,null,{"$f":"Legal[[#This Row],[Coste previsto]]-Legal[[#This Row],[Costo real]]","v":{"v":0,"d":"0.00 €"}}]
[null,"Subtotal",null,null,{"$f":"SUBTOTAL(109,Mascotas[Diferencia])","v":{"v":0,"d":"0.00 €"}},null,"Pensión alimenticia",null,null,{"$f":"Legal[[#This Row],[Coste previsto]]-Legal[[#This Row],[Costo real]]","v":{"v":0,"d":"0.00 €"}}]
[{"$nulls":6},"Pagos por retención o fallo",null,null,{"$f":"Legal[[#This Row],[Coste previsto]]-Legal[[#This Row],[Costo real]]","v":{"v":0,"d":"0.00 €"}}]
["Escriba la información en la tabla Cuidado personal, empezando por la celda de la derecha y en la tabla Legal, empezando por la celda G54. La instrucción siguiente se encuentra en la celda A61.","CUIDADO PERSONAL","Coste previsto","Costo real","Diferencia",null,"Otros",null,null,{"$f":"Legal[[#This Row],[Coste previsto]]-Legal[[#This Row],[Costo real]]","v":{"v":0,"d":"0.00 €"}}]
[null,"Médicos",null,null,{"$f":"CuidadoPersonal[[#This Row],[Coste previsto]]-CuidadoPersonal[[#This Row],[Costo real]]","v":{"v":0,"d":"0.00 €"}},null,"Subtotal",null,null,{"$f":"SUBTOTAL(109,Legal[Diferencia])","v":{"v":0,"d":"0.00 €"}}]
[null,"Pelo y uñas",null,null,{"$f":"CuidadoPersonal[[#This Row],[Coste previsto]]-CuidadoPersonal[[#This Row],[Costo real]]","v":{"v":0,"d":"0.00 €"}}]
["El total de gastos previstos se calcula automáticamente en la celda J61; el total del gasto real, en la J63; y la diferencia total, en la celda J65.","Ropa",null,null,{"$f":"CuidadoPersonal[[#This Row],[Coste previsto]]-CuidadoPersonal[[#This Row],[Costo real]]","v":{"v":0,"d":"0.00 €"}},null,"Coste estimado total",null,null,{"$f":"SUBTOTAL(109,Alojamiento[Coste previsto],Transporte[Coste previsto],Seguro[Coste previsto],Comida[Coste previsto],Mascotas[Coste previsto],CuidadoPersonal[Coste previsto],Entretenimiento[Coste previsto],Prestamos[Coste previsto],Impuestos[Coste previsto],Ahorros[Coste previsto],Regalos[Coste previsto],Legal[Coste previsto])","v":{"v":1195,"d":"1,195.00 €"}}]
[null,"Tintorería",null,null,{"$f":"CuidadoPersonal[[#This Row],[Coste previsto]]-CuidadoPersonal[[#This Row],[Costo real]]","v":{"v":0,"d":"0.00 €"}}]
[null,"Gimnasio",null,null,{"$f":"CuidadoPersonal[[#This Row],[Coste previsto]]-CuidadoPersonal[[#This Row],[Costo real]]","v":{"v":0,"d":"0.00 €"}},null,"Coste real total",null,null,{"$f":"SUBTOTAL(109,Alojamiento[Costo real],Transporte[Costo real],Seguro[Costo real],Comida[Costo real],Mascotas[Costo real],CuidadoPersonal[Costo real],Entretenimiento[Costo real],Prestamos[Costo real],Impuestos[Costo real],Ahorros[Costo real],Regalos[Costo real],Legal[Costo real])","v":{"v":1236,"d":"1,236.00 €"}}]
[null,"Tasas o cuotas de la organización",null,null,{"$f":"CuidadoPersonal[[#This Row],[Coste previsto]]-CuidadoPersonal[[#This Row],[Costo real]]","v":{"v":0,"d":"0.00 €"}}]
[null,"Otros",null,null,{"$f":"CuidadoPersonal[[#This Row],[Coste previsto]]-CuidadoPersonal[[#This Row],[Costo real]]","v":{"v":0,"d":"0.00 €"}},null,"Diferencia total",null,null,{"$f":"J61-J63","v":{"v":-41,"d":"-41.00 €"}}]
[null,"Subtotal",null,null,{"$f":"SUBTOTAL(109,CuidadoPersonal[Diferencia])","v":{"v":0,"d":"0.00 €"}}]